[Event "Late-Titled-Tuesday-Blitz-March-12-2024"]
[Site "Chess.com"]
[Date "2024.03.12"]
[Round "1"]
[White "enriquebutti"]
[Black "lucasran"]
[Result "0-1"]
[WhiteElo "2220"]
[BlackElo "2611"]
[TimeControl "180+1"]
[EndTime "14:08:23 PDT"]
[Termination "lucasran won by resignation"]

1. d4 {[%clk 0:02:59.2]} 1... Nf6 {[%clk 0:02:59.9]} 2. Nf3 {[%clk 0:02:58.4]}
2... e6 {[%clk 0:03:00.2]} 3. e3 {[%clk 0:02:58.1]} 3... b6 {[%clk 0:03:00]} 4.
Bd3 {[%clk 0:02:57.7]} 4... Bb7 {[%clk 0:03:00.1]} 5. O-O {[%clk 0:02:57.5]}
5... c5 {[%clk 0:02:55]} 6. b3 {[%clk 0:02:56.8]} 6... Be7 {[%clk 0:02:55.2]} 7.
Bb2 {[%clk 0:02:56.2]} 7... O-O {[%clk 0:02:55.7]} 8. c4 {[%clk 0:02:55.7]} 8...
cxd4 {[%clk 0:02:55.9]} 9. exd4 {[%clk 0:02:55.3]} 9... d5 {[%clk 0:02:55.3]}
10. Nbd2 {[%clk 0:02:54.1]} 10... Nbd7 {[%clk 0:02:43.7]} 11. Re1 {[%clk
0:02:48]} 11... Rc8 {[%clk 0:02:43.9]} 12. a3 {[%clk 0:02:46.9]} 12... Rc7
{[%clk 0:02:42.9]} 13. Ne5 {[%clk 0:02:42.7]} 13... Qa8 {[%clk 0:02:33.5]} 14.
cxd5 {[%clk 0:02:24.6]} 14... Bxd5 {[%clk 0:02:28.6]} 15. f3 {[%clk 0:02:24.1]}
15... Rfc8 {[%clk 0:02:27.1]} 16. Ndc4 {[%clk 0:02:19.5]} 16... Rd8 {[%clk
0:02:14.3]} 17. Qe2 {[%clk 0:02:15.1]} 17... Bf8 {[%clk 0:02:09.6]} 18. f4
{[%clk 0:02:08.8]} 18... g6 {[%clk 0:01:56.5]} 19. Rac1 {[%clk 0:01:52.7]} 19...
Rdc8 {[%clk 0:01:54.9]} 20. Nd2 {[%clk 0:01:46.3]} 20... Rxc1 {[%clk 0:01:54.3]}
21. Rxc1 {[%clk 0:01:45.5]} 21... Rxc1+ {[%clk 0:01:54.4]} 22. Bxc1 {[%clk
0:01:44.9]} 22... Qc8 {[%clk 0:01:53.6]} 23. Bb2 {[%clk 0:01:44.2]} 23... Qc7
{[%clk 0:01:53.4]} 24. Bc4 {[%clk 0:01:43]} 24... Qd6 {[%clk 0:01:49.2]} 25.
Bxd5 {[%clk 0:01:38]} 25... Qxd5 {[%clk 0:01:50.1]} 26. Qc4 {[%clk 0:01:36.4]}
26... Qb7 {[%clk 0:01:44.6]} 27. Qc6 {[%clk 0:01:31.2]} 27... Qxc6 {[%clk
0:01:40.8]} 28. Nxc6 {[%clk 0:01:30.6]} 28... a6 {[%clk 0:01:40.7]} 29. Nc4
{[%clk 0:01:26.4]} 29... b5 {[%clk 0:01:36.3]} 30. N4e5 {[%clk 0:01:25.4]} 30...
Bd6 {[%clk 0:01:35.3]} 31. Kf2 {[%clk 0:01:20.9]} 31... Kf8 {[%clk 0:01:33.7]}
32. g3 {[%clk 0:01:20.2]} 32... Ke8 {[%clk 0:01:33.2]} 33. Ke3 {[%clk
0:01:19.8]} 33... Nd5+ {[%clk 0:01:33.2]} 34. Kd3 {[%clk 0:01:18.8]} 34... f6
{[%clk 0:01:25.6]} 35. Nf3 {[%clk 0:01:11.8]} 35... N7b6 {[%clk 0:01:21.7]} 36.
Na5 {[%clk 0:01:03.2]} 36... Kd7 {[%clk 0:01:21.9]} 37. b4 {[%clk 0:01:02.6]}
37... Bc7 {[%clk 0:01:19.3]} 38. Bc1 {[%clk 0:00:59.8]} 38... Bd6 {[%clk
0:01:18]} 39. Nb3 {[%clk 0:00:58.2]} 39... Nc7 {[%clk 0:01:05.5]} 40. Nc5+
{[%clk 0:00:56.9]} 40... Kc6 {[%clk 0:01:06]} 41. Nd2 {[%clk 0:00:51.6]} 41...
Be7 {[%clk 0:01:03.9]} 42. Bb2 {[%clk 0:00:48]} 42... Nbd5 {[%clk 0:01:00.2]}
43. Ndb3 {[%clk 0:00:43.8]} 43... Kb6 {[%clk 0:00:59.9]} 44. Nd2 {[%clk
0:00:40.9]} 44... a5 {[%clk 0:00:55.7]} 45. Bc3 {[%clk 0:00:39.5]} 45... a4
{[%clk 0:00:50.5]} 46. Nde4 {[%clk 0:00:37]} 46... Kc6 {[%clk 0:00:49.9]} 47.
Nd2 {[%clk 0:00:35.9]} 47... Nb6 {[%clk 0:00:50.3]} 48. Bb2 {[%clk 0:00:34.9]}
48... Kd5 {[%clk 0:00:50.2]} 49. Bc3 {[%clk 0:00:32.6]} 49... Nc4 {[%clk
0:00:49.3]} 50. Nxc4 {[%clk 0:00:32.2]} 50... bxc4+ {[%clk 0:00:50.2]} 51. Ke3
{[%clk 0:00:32.4]} 51... Nb5 {[%clk 0:00:50.6]} 52. Nxa4 {[%clk 0:00:26.9]}
52... Nxa3 {[%clk 0:00:48.5]} 53. Nc5 {[%clk 0:00:22.3]} 53... Nc2+ {[%clk
0:00:31.4]} 54. Kd2 {[%clk 0:00:20.4]} 54... Nxd4 {[%clk 0:00:31.9]} 55. Bxd4
{[%clk 0:00:18.6]} 55... Kxd4 {[%clk 0:00:32.8]} 56. Nxe6+ {[%clk 0:00:18.9]}
56... Kd5 {[%clk 0:00:33.6]} 57. Nc7+ {[%clk 0:00:16.9]} 57... Kc6 {[%clk
0:00:34]} 58. Ne8 {[%clk 0:00:16.5]} 58... Bxb4+ {[%clk 0:00:33.5]} 59. Kc2
{[%clk 0:00:16.3]} 59... Be7 {[%clk 0:00:32.7]} 60. Kc3 {[%clk 0:00:15.7]} 60...
Kd5 {[%clk 0:00:33.1]} 61. Ng7 {[%clk 0:00:14.8]} 61... Bd8 {[%clk 0:00:32.3]}
62. Ne8 {[%clk 0:00:14.2]} 62... Ba5+ {[%clk 0:00:32.3]} 63. Kc2 {[%clk
0:00:13.8]} 63... Ke6 {[%clk 0:00:32.7]} 0-1

[Event "Late-Titled-Tuesday-Blitz-March-12-2024"]
[Site "Chess.com"]
[Date "2024.03.12"]
[Round "1"]
[White "mac0504"]
[Black "GrotBchess"]
[Result "0-1"]
[WhiteElo "2698"]
[BlackElo "2409"]
[TimeControl "180+1"]
[EndTime "14:08:24 PDT"]
[Termination "GrotBchess won by resignation"]

1. c4 {[%clk 0:03:00.9]} 1... g6 {[%clk 0:02:55.9]} 2. Nc3 {[%clk 0:03:01.8]}
2... Bg7 {[%clk 0:02:54.5]} 3. h4 {[%clk 0:03:02.7]} 3... Nf6 {[%clk 0:02:52.8]}
4. e4 {[%clk 0:03:03]} 4... e5 {[%clk 0:02:52.1]} 5. Be2 {[%clk 0:03:03.2]} 5...
h5 {[%clk 0:02:51.6]} 6. Nh3 {[%clk 0:03:03.2]} 6... Nc6 {[%clk 0:02:50]} 7. Ng5
{[%clk 0:03:03.5]} 7... d6 {[%clk 0:02:50]} 8. d3 {[%clk 0:03:03.9]} 8... Bg4
{[%clk 0:02:46.5]} 9. Be3 {[%clk 0:02:47.4]} 9... Bxe2 {[%clk 0:02:44.1]} 10.
Qxe2 {[%clk 0:02:47.7]} 10... Ng4 {[%clk 0:02:44.2]} 11. Nd5 {[%clk 0:02:34.4]}
11... Bf6 {[%clk 0:02:33.3]} 12. O-O-O {[%clk 0:02:16.2]} 12... Nd4 {[%clk
0:02:03.4]} 13. Bxd4 {[%clk 0:02:15.4]} 13... exd4 {[%clk 0:02:04.3]} 14. Nf3
{[%clk 0:02:00.2]} 14... c6 {[%clk 0:01:58.1]} 15. Nxf6+ {[%clk 0:01:42.9]}
15... Qxf6 {[%clk 0:01:59]} 16. Rdf1 {[%clk 0:01:18]} 16... O-O-O {[%clk
0:01:54.7]} 17. Ne1 {[%clk 0:01:16.9]} 17... Rhe8 {[%clk 0:01:50.8]} 18. Nc2
{[%clk 0:01:15.7]} 18... c5 {[%clk 0:01:39]} 19. Kb1 {[%clk 0:01:09.8]} 19...
Rd7 {[%clk 0:01:30.5]} 20. Qd2 {[%clk 0:00:57.5]} 20... Kb8 {[%clk 0:01:21.6]}
21. b4 {[%clk 0:00:57.6]} 21... Ne5 {[%clk 0:01:12.7]} 22. f4 {[%clk 0:00:51.1]}
22... Nc6 {[%clk 0:01:06.5]} 23. b5 {[%clk 0:00:41.8]} 23... Nd8 {[%clk
0:01:06.3]} 24. Ne1 {[%clk 0:00:41.1]} 24... Ne6 {[%clk 0:01:00.8]} 25. g3
{[%clk 0:00:41.6]} 25... Qg7 {[%clk 0:00:53.9]} 26. Nf3 {[%clk 0:00:42]} 26...
f5 {[%clk 0:00:51.2]} 27. Re1 {[%clk 0:00:40.4]} 27... Nc7 {[%clk 0:00:42.9]}
28. e5 {[%clk 0:00:35.1]} 28... d5 {[%clk 0:00:41.8]} 29. Rc1 {[%clk 0:00:11]}
29... dxc4 {[%clk 0:00:34.5]} 30. dxc4 {[%clk 0:00:11.9]} 30... Ne6 {[%clk
0:00:28.6]} 31. a4 {[%clk 0:00:09.7]} 31... Qe7 {[%clk 0:00:25.4]} 32. Rhd1
{[%clk 0:00:09.3]} 32... Qd8 {[%clk 0:00:24.6]} 33. Ne1 {[%clk 0:00:08.5]} 33...
b6 {[%clk 0:00:19.5]} 34. Nd3 {[%clk 0:00:09]} 34... Ree7 {[%clk 0:00:18.2]} 35.
Kb2 {[%clk 0:00:09.1]} 35... a5 {[%clk 0:00:14]} 36. bxa6 {[%clk 0:00:09]} 36...
Ra7 {[%clk 0:00:13.9]} 37. a5 {[%clk 0:00:08.1]} 37... Rxa6 {[%clk 0:00:13.7]}
38. Ra1 {[%clk 0:00:07.3]} 38... Rea7 {[%clk 0:00:13.2]} 39. Ra3 {[%clk
0:00:01.5]} 39... Rxa5 {[%clk 0:00:13.1]} 40. Rda1 {[%clk 0:00:01.7]} 40... Rxa3
{[%clk 0:00:12.4]} 41. Rxa3 {[%clk 0:00:02.6]} 41... Rxa3 {[%clk 0:00:12.5]} 42.
Kxa3 {[%clk 0:00:03.5]} 42... Qc7 {[%clk 0:00:11.9]} 43. Qb2 {[%clk 0:00:03.3]}
43... Qa7+ {[%clk 0:00:11.7]} 44. Kb3 {[%clk 0:00:04.1]} 44... Kc7 {[%clk
0:00:11.7]} 45. Kc2 {[%clk 0:00:04.3]} 45... Qa4+ {[%clk 0:00:11.8]} 46. Qb3
{[%clk 0:00:04.9]} 46... Qxb3+ {[%clk 0:00:12]} 47. Kxb3 {[%clk 0:00:05.8]}
47... Kc6 {[%clk 0:00:12.2]} 48. Ka4 {[%clk 0:00:04.9]} 48... Kb7 {[%clk
0:00:11.4]} 49. Kb5 {[%clk 0:00:03.6]} 49... Nc7+ {[%clk 0:00:11.6]} 50. Ka4
{[%clk 0:00:04.3]} 50... Kc6 {[%clk 0:00:11.8]} 51. Kb3 {[%clk 0:00:05.2]} 51...
Ne6 {[%clk 0:00:11.9]} 52. Ka4 {[%clk 0:00:05]} 52... Nc7 {[%clk 0:00:11.4]} 53.
Ne1 {[%clk 0:00:01.4]} 53... b5+ {[%clk 0:00:08.8]} 54. Kb3 {[%clk 0:00:02]}
54... bxc4+ {[%clk 0:00:06.8]} 55. Kxc4 {[%clk 0:00:02.9]} 55... Nd5 {[%clk
0:00:07]} 56. Nf3 {[%clk 0:00:03.2]} 56... Ne3+ {[%clk 0:00:07.2]} 57. Kd3
{[%clk 0:00:03.5]} 57... Kd5 {[%clk 0:00:07.5]} 58. Ng5 {[%clk 0:00:01.9]} 58...
c4+ {[%clk 0:00:07.7]} 59. Kd2 {[%clk 0:00:02.5]} 59... Nf1+ {[%clk 0:00:05.3]}
60. Ke1 {[%clk 0:00:01.6]} 60... Nxg3 {[%clk 0:00:05.3]} 61. e6 {[%clk 0:00:02]}
61... Kd6 {[%clk 0:00:05.5]} 62. Kf2 {[%clk 0:00:01.7]} 62... Ne4+ {[%clk
0:00:05.6]} 63. Nxe4+ {[%clk 0:00:01.2]} 63... fxe4 {[%clk 0:00:06.5]} 64. Kg3
{[%clk 0:00:01.3]} 64... Kxe6 {[%clk 0:00:06.6]} 0-1

[Event "Late-Titled-Tuesday-Blitz-March-12-2024"]
[Site "Chess.com"]
[Date "2024.03.12"]
[Round "1"]
[White "ArtemDyachuk"]
[Black "Nick12772"]
[Result "1-0"]
[WhiteElo "2692"]
[BlackElo "2353"]
[TimeControl "180+1"]
[EndTime "14:08:27 PDT"]
[Termination "ArtemDyachuk won by checkmate"]

1. c4 {[%clk 0:02:57.7]} 1... Nf6 {[%clk 0:03:00.1]} 2. Nf3 {[%clk 0:02:56.8]}
2... g6 {[%clk 0:03:00]} 3. g3 {[%clk 0:02:56.5]} 3... Bg7 {[%clk 0:03:00.2]} 4.
Bg2 {[%clk 0:02:57.1]} 4... O-O {[%clk 0:03:01.1]} 5. O-O {[%clk 0:02:57.3]}
5... c6 {[%clk 0:03:01.8]} 6. d4 {[%clk 0:02:57.2]} 6... d5 {[%clk 0:03:02.7]}
7. cxd5 {[%clk 0:02:57.5]} 7... cxd5 {[%clk 0:03:03.6]} 8. Nc3 {[%clk
0:02:57.9]} 8... Ne4 {[%clk 0:03:03.6]} 9. Qb3 {[%clk 0:02:49.4]} 9... Nxc3
{[%clk 0:03:02.4]} 10. bxc3 {[%clk 0:02:50.3]} 10... Nc6 {[%clk 0:03:02.3]} 11.
Ba3 {[%clk 0:02:48.2]} 11... Na5 {[%clk 0:02:59.4]} 12. Qb4 {[%clk 0:02:39.2]}
12... Nc6 {[%clk 0:02:44.6]} 13. Qb2 {[%clk 0:02:23.3]} 13... Na5 {[%clk
0:02:37.5]} 14. Nd2 {[%clk 0:02:22.4]} 14... b6 {[%clk 0:02:18.3]} 15. Rfe1
{[%clk 0:01:40]} 15... Ba6 {[%clk 0:02:11.5]} 16. e4 {[%clk 0:01:39]} 16... Nc4
{[%clk 0:02:09.6]} 17. Nxc4 {[%clk 0:01:38]} 17... Bxc4 {[%clk 0:02:10.5]} 18.
exd5 {[%clk 0:01:38.6]} 18... Re8 {[%clk 0:02:03.8]} 19. d6 {[%clk 0:01:38.6]}
19... exd6 {[%clk 0:01:50.7]} 20. Bxa8 {[%clk 0:01:29.2]} 20... Qxa8 {[%clk
0:01:48.3]} 21. Rxe8+ {[%clk 0:01:23.1]} 21... Qxe8 {[%clk 0:01:49.2]} 22. Qd2
{[%clk 0:01:22.9]} 22... d5 {[%clk 0:01:30.2]} 23. Re1 {[%clk 0:01:20.9]} 23...
Qa4 {[%clk 0:01:28.1]} 24. Bd6 {[%clk 0:01:16.3]} 24... h5 {[%clk 0:01:22.2]}
25. a3 {[%clk 0:01:10.2]} 25... Qd7 {[%clk 0:01:14]} 26. Qf4 {[%clk 0:00:57.6]}
26... Qh3 {[%clk 0:01:13.2]} 27. Be5 {[%clk 0:00:41.3]} 27... Bxe5 {[%clk
0:00:56]} 28. dxe5 {[%clk 0:00:39.7]} 28... Bd3 {[%clk 0:00:48]} 29. f3 {[%clk
0:00:32.4]} 29... Bf5 {[%clk 0:00:34.7]} 30. Qh4 {[%clk 0:00:29]} 30... Qxh4
{[%clk 0:00:32.8]} 31. gxh4 {[%clk 0:00:29.9]} 31... Kf8 {[%clk 0:00:27.2]} 32.
Kf2 {[%clk 0:00:29.6]} 32... Ke7 {[%clk 0:00:27.7]} 33. Ke3 {[%clk 0:00:30.2]}
33... Bc2 {[%clk 0:00:21.9]} 34. Kd4 {[%clk 0:00:29.8]} 34... Bb3 {[%clk
0:00:22.5]} 35. f4 {[%clk 0:00:27.5]} 35... Bc4 {[%clk 0:00:20.6]} 36. f5 {[%clk
0:00:25.1]} 36... Bb3 {[%clk 0:00:15.4]} 37. Ke3 {[%clk 0:00:26]} 37... Bc2
{[%clk 0:00:14.6]} 38. fxg6 {[%clk 0:00:23.5]} 38... fxg6 {[%clk 0:00:15.5]} 39.
Kf4 {[%clk 0:00:24.3]} 39... Ke6 {[%clk 0:00:15.4]} 40. Rc1 {[%clk 0:00:19.9]}
40... Bd3 {[%clk 0:00:15.6]} 41. Rd1 {[%clk 0:00:19.9]} 41... Bc2 {[%clk
0:00:15.3]} 42. Rd2 {[%clk 0:00:19.3]} 42... Bf5 {[%clk 0:00:11.9]} 43. Rd4
{[%clk 0:00:17]} 43... Bc2 {[%clk 0:00:11.9]} 44. c4 {[%clk 0:00:16.6]} 44...
Bb3 {[%clk 0:00:05.1]} 45. cxd5+ {[%clk 0:00:15.6]} 45... Bxd5 {[%clk 0:00:06]}
46. Rd3 {[%clk 0:00:15.7]} 46... b5 {[%clk 0:00:05.8]} 47. Rd4 {[%clk
0:00:15.5]} 47... a5 {[%clk 0:00:05.2]} 48. h3 {[%clk 0:00:15.8]} 48... Bc4
{[%clk 0:00:04.8]} 49. Rd6+ {[%clk 0:00:15.2]} 49... Kf7 {[%clk 0:00:04.6]} 50.
Kg5 {[%clk 0:00:15.2]} 50... b4 {[%clk 0:00:02.9]} 51. axb4 {[%clk 0:00:14.1]}
51... axb4 {[%clk 0:00:03.8]} 52. Rf6+ {[%clk 0:00:14.2]} 52... Ke7 {[%clk
0:00:04.1]} 53. Rxg6 {[%clk 0:00:14.6]} 53... b3 {[%clk 0:00:04.8]} 54. Rb6
{[%clk 0:00:14.5]} 54... Be2 {[%clk 0:00:04.6]} 55. Rxb3 {[%clk 0:00:13.7]}
55... Ke6 {[%clk 0:00:05.5]} 56. Re3 {[%clk 0:00:13.4]} 56... Bd1 {[%clk
0:00:05.6]} 57. Re1 {[%clk 0:00:13.2]} 57... Bf3 {[%clk 0:00:05.7]} 58. Kf4
{[%clk 0:00:13.6]} 58... Bd5 {[%clk 0:00:05.2]} 59. Rg1 {[%clk 0:00:13.7]} 59...
Bc4 {[%clk 0:00:05.4]} 60. Rg6+ {[%clk 0:00:13.8]} 60... Kf7 {[%clk 0:00:05.6]}
61. Rc6 {[%clk 0:00:13]} 61... Be2 {[%clk 0:00:06]} 62. Rf6+ {[%clk 0:00:12.7]}
62... Ke7 {[%clk 0:00:06.5]} 63. Kg5 {[%clk 0:00:12.4]} 63... Bd1 {[%clk
0:00:06.9]} 64. Rg6 {[%clk 0:00:10.5]} 64... Be2 {[%clk 0:00:07.3]} 65. e6
{[%clk 0:00:10]} 65... Bd1 {[%clk 0:00:07.5]} 66. Rh6 {[%clk 0:00:10.3]} 66...
Be2 {[%clk 0:00:07.6]} 67. Kf5 {[%clk 0:00:10.8]} 67... Bd3+ {[%clk 0:00:06.8]}
68. Ke5 {[%clk 0:00:11.2]} 68... Bf1 {[%clk 0:00:06.7]} 69. Rh7+ {[%clk
0:00:11]} 69... Kf8 {[%clk 0:00:06.6]} 70. Kf6 {[%clk 0:00:11.9]} 70... Ke8
{[%clk 0:00:06.5]} 71. Rh8# {[%clk 0:00:11.8]} 1-0

[Event "Late-Titled-Tuesday-Blitz-March-12-2024"]
[Site "Chess.com"]
[Date "2024.03.12"]
[Round "1"]
[White "ExchangeAB"]
[Black "GMKrikor"]
[Result "0-1"]
[WhiteElo "2496"]
[BlackElo "2873"]
[TimeControl "180+1"]
[EndTime "14:08:29 PDT"]
[Termination "GMKrikor won by resignation"]

1. d4 {[%clk 0:03:00]} 1... Nf6 {[%clk 0:02:59.5]} 2. Nf3 {[%clk 0:03:00.5]}
2... g6 {[%clk 0:02:59.2]} 3. Nbd2 {[%clk 0:02:58.7]} 3... Bg7 {[%clk
0:02:54.2]} 4. e4 {[%clk 0:02:58.7]} 4... d6 {[%clk 0:02:54.6]} 5. Bd3 {[%clk
0:02:57.8]} 5... Nc6 {[%clk 0:02:53.6]} 6. c3 {[%clk 0:02:57.6]} 6... e5 {[%clk
0:02:52.4]} 7. O-O {[%clk 0:02:56.9]} 7... O-O {[%clk 0:02:51.3]} 8. Re1 {[%clk
0:02:55.5]} 8... Re8 {[%clk 0:02:49.6]} 9. Nf1 {[%clk 0:02:53.6]} 9... exd4
{[%clk 0:02:48.6]} 10. cxd4 {[%clk 0:02:53.3]} 10... Bg4 {[%clk 0:02:48.9]} 11.
Bc2 {[%clk 0:02:33.1]} 11... Nd7 {[%clk 0:02:31.2]} 12. Be3 {[%clk 0:02:29.5]}
12... Bxf3 {[%clk 0:02:29.7]} 13. gxf3 {[%clk 0:02:27.8]} 13... d5 {[%clk
0:02:16.1]} 14. Ng3 {[%clk 0:02:18.5]} 14... dxe4 {[%clk 0:02:06]} 15. fxe4
{[%clk 0:02:16.2]} 15... Nb6 {[%clk 0:02:06.4]} 16. d5 {[%clk 0:02:11.9]} 16...
Ne5 {[%clk 0:02:05.4]} 17. Rb1 {[%clk 0:01:55]} 17... Qh4 {[%clk 0:02:03.8]} 18.
Qe2 {[%clk 0:01:37.4]} 18... Ng4 {[%clk 0:02:00]} 19. f3 {[%clk 0:01:32.8]}
19... Nxe3 {[%clk 0:02:00.1]} 20. Qxe3 {[%clk 0:01:33.7]} 20... Nxd5 {[%clk
0:01:56.7]} 21. Qc5 {[%clk 0:01:15.5]} 21... Nf4 {[%clk 0:01:53.2]} 22. Rbd1
{[%clk 0:01:04.1]} 22... Qh3 {[%clk 0:01:42.4]} 23. Qf2 {[%clk 0:01:02.6]} 23...
Rad8 {[%clk 0:01:41.8]} 24. Ne2 {[%clk 0:00:56.1]} 24... Be5 {[%clk 0:01:23.8]}
25. Nxf4 {[%clk 0:00:55.1]} 25... Bxf4 {[%clk 0:01:23.8]} 26. Qg2 {[%clk
0:00:51.8]} 26... Qh4 {[%clk 0:01:20]} 27. Bb3 {[%clk 0:00:47.1]} 27... Rd2
{[%clk 0:01:08.1]} 28. Re2 {[%clk 0:00:27.6]} 28... Rxd1+ {[%clk 0:00:53.7]} 29.
Bxd1 {[%clk 0:00:28.5]} 29... Rd8 {[%clk 0:00:53.9]} 30. Bb3 {[%clk 0:00:28.8]}
30... c6 {[%clk 0:00:54]} 31. Qf2 {[%clk 0:00:19.2]} 31... Qg5+ {[%clk
0:00:49.3]} 32. Kh1 {[%clk 0:00:19.5]} 32... a6 {[%clk 0:00:47.5]} 33. Qg1
{[%clk 0:00:19.7]} 33... Qf6 {[%clk 0:00:45.2]} 34. Qb6 {[%clk 0:00:16.5]} 34...
Be5 {[%clk 0:00:44]} 35. Kg2 {[%clk 0:00:14.1]} 35... Rd3 {[%clk 0:00:36.6]} 36.
Qf2 {[%clk 0:00:12.4]} 36... Kg7 {[%clk 0:00:34.3]} 37. Bc4 {[%clk 0:00:10.7]}
37... Qg5+ {[%clk 0:00:30.8]} 38. Kh1 {[%clk 0:00:07.1]} 38... Rd4 {[%clk
0:00:22.4]} 39. b3 {[%clk 0:00:06.7]} 39... b5 {[%clk 0:00:20.6]} 40. f4 {[%clk
0:00:05.4]} 40... Qxf4 {[%clk 0:00:20.8]} 41. Qxf4 {[%clk 0:00:05.5]} 41... Bxf4
{[%clk 0:00:21.7]} 42. Rf2 {[%clk 0:00:04.4]} 42... g5 {[%clk 0:00:05.1]} 43.
Bf1 {[%clk 0:00:03.6]} 43... Rxe4 {[%clk 0:00:05.6]} 44. Re2 {[%clk 0:00:03.7]}
44... Rxe2 {[%clk 0:00:05.4]} 45. Bxe2 {[%clk 0:00:04.6]} 45... c5 {[%clk
0:00:04.5]} 46. Bf3 {[%clk 0:00:04.9]} 46... c4 {[%clk 0:00:03.5]} 47. bxc4
{[%clk 0:00:04.9]} 47... bxc4 {[%clk 0:00:04.4]} 48. Be2 {[%clk 0:00:05.1]}
48... c3 {[%clk 0:00:05]} 49. Bd3 {[%clk 0:00:05.8]} 49... h5 {[%clk 0:00:04.8]}
50. Kg2 {[%clk 0:00:05.1]} 50... Kf6 {[%clk 0:00:05.3]} 51. h4 {[%clk
0:00:04.5]} 51... g4 {[%clk 0:00:05.7]} 52. Kf2 {[%clk 0:00:04.5]} 52... Ke5
{[%clk 0:00:06.2]} 53. Ke2 {[%clk 0:00:04.8]} 53... Bg3 {[%clk 0:00:04.4]} 54.
Bxa6 {[%clk 0:00:03.7]} 54... Bxh4 {[%clk 0:00:04.4]} 55. Kd3 {[%clk 0:00:04]}
55... Be1 {[%clk 0:00:03.6]} 56. Bb7 {[%clk 0:00:03.9]} 56... f5 {[%clk
0:00:03.3]} 57. a4 {[%clk 0:00:04.5]} 57... h4 {[%clk 0:00:03.8]} 58. a5 {[%clk
0:00:04.9]} 58... h3 {[%clk 0:00:03.7]} 59. a6 {[%clk 0:00:05]} 59... Bf2 {[%clk
0:00:04]} 60. Ke2 {[%clk 0:00:05.4]} 60... Ba7 {[%clk 0:00:03.8]} 61. Kd3 {[%clk
0:00:05.7]} 61... Kf4 {[%clk 0:00:04.4]} 62. Kxc3 {[%clk 0:00:06.1]} 62... g3
{[%clk 0:00:05]} 63. Kd3 {[%clk 0:00:06.5]} 63... g2 {[%clk 0:00:05.5]} 64. Bxg2
{[%clk 0:00:06.5]} 64... hxg2 {[%clk 0:00:06.4]} 65. Ke2 {[%clk 0:00:06.7]}
65... g1=Q {[%clk 0:00:06.7]} 0-1

[Event "Late-Titled-Tuesday-Blitz-March-12-2024"]
[Site "Chess.com"]
[Date "2024.03.12"]
[Round "1"]
[White "WilsonPalencia21"]
[Black "SantoBlue"]
[Result "0-1"]
[WhiteElo "2556"]
[BlackElo "3058"]
[TimeControl "180+1"]
[EndTime "14:08:30 PDT"]
[Termination "SantoBlue won on time"]

1. d4 {[%clk 0:03:00.9]} 1... d6 {[%clk 0:02:57.9]} 2. Nf3 {[%clk 0:03:00.8]}
2... Nf6 {[%clk 0:02:56.6]} 3. c4 {[%clk 0:03:00.5]} 3... g6 {[%clk 0:02:56]} 4.
Nc3 {[%clk 0:03:00.4]} 4... Bg7 {[%clk 0:02:56.7]} 5. e4 {[%clk 0:03:00.5]} 5...
O-O {[%clk 0:02:57.2]} 6. Be2 {[%clk 0:02:58.1]} 6... Nbd7 {[%clk 0:02:57.5]} 7.
h3 {[%clk 0:02:56.5]} 7... e5 {[%clk 0:02:58]} 8. d5 {[%clk 0:02:56.6]} 8... Nc5
{[%clk 0:02:57.3]} 9. Qc2 {[%clk 0:02:56.6]} 9... a5 {[%clk 0:02:57.4]} 10. Bg5
{[%clk 0:02:56.4]} 10... h6 {[%clk 0:02:57.1]} 11. Be3 {[%clk 0:02:56.2]} 11...
Nh7 {[%clk 0:02:54.8]} 12. g4 {[%clk 0:02:55.2]} 12... f5 {[%clk 0:02:54.7]} 13.
gxf5 {[%clk 0:02:54.8]} 13... gxf5 {[%clk 0:02:55.6]} 14. Rg1 {[%clk 0:02:54.9]}
14... Kh8 {[%clk 0:02:50]} 15. Nd2 {[%clk 0:02:27.9]} 15... Na6 {[%clk
0:02:21.8]} 16. exf5 {[%clk 0:02:24.5]} 16... Nb4 {[%clk 0:02:16.8]} 17. Qd1
{[%clk 0:02:15.5]} 17... Bxf5 {[%clk 0:02:17.3]} 18. Nde4 {[%clk 0:02:12]} 18...
Nf6 {[%clk 0:02:04.2]} 19. Bf3 {[%clk 0:01:59]} 19... Nxe4 {[%clk 0:01:57.9]}
20. Bxe4 {[%clk 0:01:57.7]} 20... Qh4 {[%clk 0:01:51.8]} 21. Bxf5 {[%clk
0:01:55]} 21... Rxf5 {[%clk 0:01:51.7]} 22. a3 {[%clk 0:01:51.2]} 22... Raf8
{[%clk 0:00:31.5]} 23. Qg4 {[%clk 0:01:35.2]} 23... Nc2+ {[%clk 0:00:12.5]} 24.
Kd2 {[%clk 0:01:32.7]} 24... Qxg4 {[%clk 0:00:12.2]} 25. hxg4 {[%clk 0:01:30.4]}
25... Rxf2+ {[%clk 0:00:09.4]} 26. Bxf2 {[%clk 0:01:30.2]} 26... Rxf2+ {[%clk
0:00:10.3]} 27. Ne2 {[%clk 0:01:22.6]} 27... Nxa1 {[%clk 0:00:11]} 28. Rxa1
{[%clk 0:01:21.9]} 28... e4 {[%clk 0:00:10.6]} 29. Rb1 {[%clk 0:01:13.7]} 29...
Bd4 {[%clk 0:00:08.7]} 30. b4 {[%clk 0:01:09.7]} 30... a4 {[%clk 0:00:08.9]} 31.
Rh1 {[%clk 0:01:02.1]} 31... Kg7 {[%clk 0:00:06.8]} 32. Rh3 {[%clk 0:01:01.9]}
32... Rg2 {[%clk 0:00:06]} 33. Rg3 {[%clk 0:00:59.5]} 33... Rxg3 {[%clk
0:00:05.2]} 34. Nxg3 {[%clk 0:00:59.6]} 34... e3+ {[%clk 0:00:04.4]} 35. Kc2
{[%clk 0:00:58.5]} 35... Kg6 {[%clk 0:00:04.2]} 36. Nf5 {[%clk 0:00:57.6]} 36...
e2 {[%clk 0:00:03.9]} 37. Kd2 {[%clk 0:00:57.1]} 37... Bb2 {[%clk 0:00:03.5]}
38. Kxe2 {[%clk 0:00:51.3]} 38... Bxa3 {[%clk 0:00:04.1]} 39. b5 {[%clk
0:00:51.3]} 39... Bb2 {[%clk 0:00:04.2]} 40. Kd3 {[%clk 0:00:51.1]} 40... a3
{[%clk 0:00:04.2]} 41. Kc2 {[%clk 0:00:51.3]} 41... b6 {[%clk 0:00:04.2]} 42. c5
{[%clk 0:00:40.8]} 42... dxc5 {[%clk 0:00:02.9]} 43. Ne7+ {[%clk 0:00:40]} 43...
Kg5 {[%clk 0:00:03]} 44. Nc6 {[%clk 0:00:33.5]} 44... Kxg4 {[%clk 0:00:02.5]}
45. Nd8 {[%clk 0:00:33.8]} 45... h5 {[%clk 0:00:02.6]} 46. Ne6 {[%clk
0:00:33.9]} 46... h4 {[%clk 0:00:02.6]} 47. Nxc5 {[%clk 0:00:32.7]} 47... Be5
{[%clk 0:00:02]} 48. Nd3 {[%clk 0:00:31]} 48... a2 {[%clk 0:00:02.2]} 49. Nxe5+
{[%clk 0:00:31.2]} 49... Kf5 {[%clk 0:00:02.6]} 50. d6 {[%clk 0:00:29.9]} 50...
cxd6 {[%clk 0:00:02.3]} 51. Nc4 {[%clk 0:00:28.9]} 51... a1=Q {[%clk 0:00:02.9]}
52. Nxd6+ {[%clk 0:00:29.8]} 52... Kf4 {[%clk 0:00:03.5]} 53. Nc4 {[%clk
0:00:30.5]} 53... Qd4 {[%clk 0:00:03.7]} 54. Kb3 {[%clk 0:00:31]} 54... Qc5
{[%clk 0:00:04.3]} 55. Ka4 {[%clk 0:00:31.3]} 55... h3 {[%clk 0:00:05]} 56. Nd2
{[%clk 0:00:30.7]} 56... h2 {[%clk 0:00:05.4]} 57. Nb3 {[%clk 0:00:30.9]} 57...
h1=Q {[%clk 0:00:05.7]} 58. Nxc5 {[%clk 0:00:30.4]} 58... bxc5 {[%clk
0:00:06.6]} 59. Ka5 {[%clk 0:00:31]} 59... Qb1 {[%clk 0:00:06.9]} 0-1